bitfinex-derivatives/quotes_ETHF0:USTF0_20241026
["timestamp","ask_amount","ask_price","bid_price","bid_amount"]
[1729933971125,7.40095963,2473.1,2473.0,2.37246582]
[1729933973523,4.19315963,2473.1,2473.0,2.37246582]
[1729933973723,4.19315963,2473.1,2473.0,2.70155157]
[1729933973926,7.40095963,2473.1,2473.0,2.70155157]
[1729933974230,6.52245963,2473.1,2473.0,5.89016698]
[1729933974520,6.52245963,2473.1,2473.0,7.20759235]
[1729933975118,6.52245963,2473.1,2473.0,9.32776247]
[1729933975320,6.52245963,2473.1,2473.0,7.20735589]
[1729933975522,6.52245963,2473.1,2473.0,7.05858818]
[1729933975723,6.52245963,2473.1,2473.0,9.32745477]
[1729933976216,6.52245963,2473.1,2473.0,7.48816632]
[1729933976523,6.52245963,2473.1,2473.0,9.32685804]
[1729933976723,6.52245963,2473.1,2473.0,7.48805236]
[1729933977322,6.52245963,2473.1,2473.0,10.88438605]
[1729933977915,6.52245963,2473.1,2473.0,12.19677054]
[1729933978125,3.6567,2473.5,2473.0,6.27547673]
[1729933978328,0.836,2473.6,2473.4,3.02948898]
[1729933978529,1.2732,2473.8,2473.5,4.09765374]
[1729933978725,1.2732,2473.8,2473.7,1.31238449]
[1729933978929,1.2732,2473.8,2473.7,1.43893945]
[1729933979117,4.58785963,2473.8,2473.7,1.31238449]
[1729933979322,4.58785963,2473.8,2473.7,1.43892839]
[1729933979719,5.82851963,2473.8,2473.7,1.43892839]
[1729933979922,5.42385963,2473.8,2473.7,1.43892839]
[1729933980923,8.63165963,2473.8,2473.7,1.43892839]
[1729933981718,8.63165963,2473.8,2473.7,1.31238449]
[1729933991931,6.52245963,2473.8,2473.7,1.31238449]
[1729933992128,6.52245963,2473.8,2473.7,1.71705449]
[1729933993147,6.52245963,2473.8,2473.7,1.31238449]
[1729933996543,3.31465963,2473.8,2473.7,1.31238449]
[1729933998740,3.31465963,2473.8,2473.7,1.71705449]
[1729933999341,3.31465963,2473.8,2473.7,2.7744084]
[1729934000445,3.31465963,2473.8,2473.7,1.71705449]
[1729934001853,3.31465963,2473.8,2473.7,1.31238449]
[1729934002751,3.31465963,2473.8,2473.7,1.71705449]
[1729934003141,3.31465963,2473.8,2473.7,1.31238449]
[1729934004547,3.31465963,2473.8,2473.7,1.71705449]
[1729934005256,3.31465963,2473.8,2473.7,1.31238449]
[1729934013355,3.71931963,2473.8,2473.5,1.2885]
[1729934013562,3.31465963,2473.6,2473.5,1.2885]
[1729934013761,3.31465963,2473.6,2473.5,1.41504122]
[1729934014066,6.52245963,2473.6,2473.3,0.4414]
[1729934014256,3.31465963,2473.4,2473.3,0.4414]
[1729934014456,2.70721637,2473.4,2473.3,4.41584925]
[1729934014858,2.70721637,2473.4,2473.3,5.72823374]
[1729934015356,2.70721637,2473.4,2473.3,5.45458736]
[1729934015750,2.70721637,2473.4,2473.3,4.14220287]
[1729934015963,2.70721637,2473.4,2473.3,4.01565216]
[1729934016362,2.70721637,2473.4,2473.3,5.32803665]
[1729934016660,2.70721637,2473.4,2473.3,7.44274448]
[1729934017056,2.70721637,2473.4,2473.3,5.32803665]
[1729934017252,2.70721637,2473.4,2473.3,7.44274448]
[1729934017460,2.70721637,2473.4,2473.3,11.15412961]
[1729934017655,2.70721637,2473.4,2473.3,7.56929347]
[1729934017859,2.70721637,2473.4,2473.3,7.44133815]
[1729934018259,2.70721637,2473.4,2473.3,11.15373131]
[1729934019354,2.70721637,2473.4,2473.3,9.03902348]
[1729934019862,2.70721637,2473.4,2473.3,11.15740866]
[1729934020466,2.70721637,2473.4,2473.3,9.03902348]
[1729934021362,2.70721637,2473.4,2473.3,6.3862068]
[1729934022463,2.70721637,2473.4,2473.3,4.53048546]
[1729934022672,2.70721637,2473.4,2473.3,6.38790906]
[1729934023056,2.70721637,2473.4,2473.3,5.32833258]
[1729934023872,2.70721637,2473.4,2473.3,6.38787606]
[1729934024069,2.70721637,2473.4,2473.3,5.32833258]
[1729934025664,2.70721637,2473.4,2473.3,6.91769731]
[1729934026059,1.2807,2473.7,2473.3,6.38783775]
[1729934026264,2.70721637,2473.4,2473.2,1.58936473]
[1729934026468,1.68538,2473.7,2473.3,1.05951654]
[1729934026670,1.68538,2473.7,2473.6,1.31238449]
[1729934027170,4.39259637,2473.7,2473.6,1.31238449]
[1729934028765,3.98791637,2473.7,2473.6,1.31238449]
[1729934028966,3.98791637,2473.7,2473.6,1.43892782]
[1729934029176,3.98791637,2473.7,2473.6,1.31238449]
[1729934029366,3.98791637,2473.7,2473.6,1.4389256]
[1729934029667,3.98791637,2473.7,2473.6,4.88542257]
[1729934031469,3.98791637,2473.7,2473.6,5.33451094]
[1729934032468,3.98791637,2473.7,2473.6,4.88542257]
[1729934033468,3.98791637,2473.7,2473.6,5.73920646]
[1729934033664,3.98791637,2473.7,2473.6,5.29011257]
[1729934034276,3.98791637,2473.7,2473.6,3.70074784]
[1729934034667,3.98791637,2473.7,2473.6,3.29605784]
[1729934034866,3.98791637,2473.7,2473.6,4.88517759]
[1729934035667,3.98791637,2473.7,2473.6,5.28986759]
[1729934036269,3.98791637,2473.7,2473.6,4.88517759]
[1729934036878,2.70721637,2473.7,2473.6,5.28986761]
[1729934037076,2.70721637,2473.7,2473.6,10.18527666]
[1729934040578,2.70721637,2473.7,2473.6,9.85626156]
[1729934040882,2.70721637,2473.7,2473.6,10.18524247]
[1729934041174,2.70721637,2473.7,2473.6,4.6142361]
[1729934041378,2.70721637,2473.7,2473.6,10.18492233]
[1729934041972,2.70721637,2473.7,2473.6,3.83622746]
[1729934042979,2.70721637,2473.7,2473.6,9.40685595]
[1729934043573,2.70721637,2473.7,2473.6,5.69310362]
[1729934043772,2.70721637,2473.7,2473.6,1.31238449]
[1729934045785,2.70721637,2473.7,2473.6,1.71707449]
[1729934046381,3.6249,2474.0,2473.7,0.40466]
[1729934046575,2.70721637,2473.8,2473.7,0.4368]
[1729934046786,2.70721637,2473.8,2473.7,0.84147]
[1729934046982,2.70721637,2473.8,2473.7,0.4368]
[1729934047679,2.70721637,2473.8,2473.7,0.84147]
[1729934048883,2.70721637,2473.8,2473.7,1.29046948]
[1729934049079,2.70721637,2473.8,2473.7,1.61944709]
[1729934049382,2.70721637,2473.8,2473.7,2.93183158]
[1729934050983,2.70721637,2473.8,2473.7,2.48283029]
[1729934051192,2.70721637,2473.8,2473.7,2.9285472]
[1729934051577,2.70721637,2473.8,2473.7,2.5238772]
[1729934051879,2.70721637,2473.8,2473.7,6.49988438]
[1729934052886,2.70721637,2473.8,2473.7,10.2134772]
[1729934053583,2.70721637,2473.8,2473.7,10.6181472]
[1729934053982,2.70721637,2473.8,2473.7,6.90455438]
[1729934054587,2.70721637,2473.8,2473.7,6.90454131]
[1729934054889,2.70721637,2473.8,2473.7,6.57556716]
[1729934055079,2.70721637,2473.8,2473.7,6.90454108]
[1729934055986,2.70721637,2473.8,2473.7,6.90453128]
[1729934056188,2.70721637,2473.8,2473.7,6.57555736]
[1729934056989,2.70721637,2473.8,2473.7,6.12986167]
[1729934058379,2.70721637,2473.8,2473.7,5.72519167]
[1729934061194,2.70721637,2473.8,2473.7,3.60586629]
[1729934061494,2.70721637,2473.8,2473.7,5.72501926]
[1729934062583,2.70721637,2473.8,2473.7,3.60586629]
[1729934062895,2.70721637,2473.8,2473.7,5.72501926]
[1729934063994,2.70721637,2473.8,2473.7,6.17096807]
[1729934064194,2.70721637,2473.8,2473.7,6.49995047]
[1729934064586,2.70721637,2473.8,2473.7,4.3807975]
[1729934065190,2.70721637,2473.8,2473.7,6.49995047]
[1729934066091,2.70721637,2473.8,2473.7,2.52415054]
[1729934067996,3.14111637,2473.8,2473.7,2.52415054]
[1729934069604,3.14111637,2473.8,2473.7,2.5243183]
[1729934069902,3.14111637,2473.8,2473.7,1.4389184]
[1729934071206,3.14111637,2473.8,2473.7,1.31238449]
[1729934074009,2.70721637,2473.8,2473.7,4.76117185]
[1729934074319,2.70721637,2473.8,2473.7,5.29074506]
[1729934074611,2.70721637,2473.8,2473.7,9.00910689]
[1729934074816,2.70721637,2473.8,2473.7,9.42620689]
[1729934075611,2.70721637,2473.8,2473.7,9.42646219]
[1729934079313,2.70721637,2473.8,2473.7,10.20182027]
[1729934080518,2.70721637,2473.8,2473.7,10.20285558]
[1729934081220,2.70721637,2473.8,2473.7,2.50484257]
[1729934081421,2.70721637,2473.8,2473.7,2.50483959]
[1729934085424,2.70721637,2473.8,2473.7,2.3026369]
[1729934085627,2.70721637,2473.8,2473.7,2.50509108]
[1729934086420,2.70721637,2473.8,2473.7,1.72948449]
[1729934089229,2.70721637,2473.8,2473.7,7.31106879]
[1729934090325,2.70721637,2473.8,2473.7,7.31101281]
[1729934091528,2.70721637,2473.8,2473.7,7.71568281]
[1729934091732,2.70721637,2473.8,2473.7,7.31101281]
[1729934093229,2.70721637,2473.8,2473.7,7.71568281]
[1729934093526,2.70721637,2473.8,2473.7,7.31101281]
[1729934094429,2.70721637,2473.8,2473.7,8.08334681]
[1729934095028,2.70721637,2473.8,2473.7,8.48883272]
[1729934095230,2.70721637,2473.8,2473.7,8.08416272]
[1729934095731,2.70721637,2473.8,2473.7,8.48883272]
[1729934095930,2.70721637,2473.8,2473.7,8.08416272]
[1729934096130,2.70721637,2473.8,2473.7,8.48883272]
[1729934096431,2.70721637,2473.8,2473.7,2.90648849]
[1729934096623,2.70721637,2473.8,2473.7,2.50181849]
[1729934097121,2.70721637,2473.8,2473.7,2.90648849]
[1729934097830,2.70721637,2473.8,2473.7,2.90649517]
[1729934098332,2.70721637,2473.8,2473.7,2.50182517]
[1729934100231,2.70721637,2473.8,2473.7,2.90649517]
[1729934100926,2.70721637,2473.8,2473.7,2.57750661]
[1729934101127,2.70721637,2473.8,2473.7,2.90679334]
[1729934101325,2.70721637,2473.8,2473.7,2.13415449]
[1729934101628,2.70721637,2473.8,2473.7,2.90679392]
[1729934102330,2.70721637,2473.8,2473.7,3.61663158]
[1729934104333,2.70721637,2473.8,2473.7,11.84521828]
[1729934104532,2.70721637,2473.8,2473.7,10.36274119]
[1729934104721,2.70721637,2473.8,2473.7,11.84518712]
[1729934104920,2.09987021,2473.8,2473.7,11.84518712]
[1729934106932,2.09987021,2473.8,2473.7,11.44051712]
[1729934107133,2.09987021,2473.8,2473.7,11.84518712]
[1729934108035,2.09987021,2473.8,2473.7,11.8379027]
[1729934108929,3.2078,2474.0,2473.8,0.40465]
[1729934109132,3.2078,2474.0,2473.9,6.89355172]
[1729934109531,5.30767021,2474.0,2473.9,12.07591526]
[1729934109932,5.30767021,2474.0,2473.9,10.76353077]
[1729934111433,5.30767021,2474.0,2473.9,3.60389534]
[1729934112726,2.09987021,2474.0,2473.9,3.60389534]
[1729934113328,5.30767021,2474.0,2473.9,4.91627983]
[1729934113723,5.30767021,2474.0,2473.9,3.19925534]
[1729934114336,5.30767021,2474.0,2473.9,2.13768449]
[1729934114537,5.30767021,2474.0,2473.9,2.54232449]
[1729934115634,2.09987021,2474.0,2473.9,2.54232449]
[1729934116636,2.09987021,2474.0,2473.9,3.31022076]
[1729934116838,2.09987021,2474.0,2473.9,2.54232449]
[1729934117045,2.09987021,2474.0,2473.9,4.58826449]
[1729934117233,2.09987021,2474.0,2473.9,5.77635168]
[1729934117834,2.09987021,2474.0,2473.9,4.31014083]
[1729934118543,2.09987021,2474.0,2473.9,12.22930346]
[1729934120447,4.0765,2474.3,2473.9,13.54168795]
[1729934120641,2.09987021,2474.1,2474.0,6.75228555]
[1729934120948,2.09987021,2474.1,2474.0,9.65515299]
[1729934121246,2.09987021,2474.1,2474.0,9.9840848]
[1729934121544,2.09987021,2474.1,2474.0,9.5794648]
[1729934122545,2.09987021,2474.1,2474.0,9.57913069]
[1729934122942,2.09987021,2474.1,2474.0,8.2667462]
[1729934123247,2.09987021,2474.1,2474.0,10.38873483]
[1729934124148,2.09987021,2474.1,2474.0,11.70111932]
[1729934124453,2.09987021,2474.1,2474.0,10.38873483]
[1729934125040,2.09987021,2474.1,2474.0,10.38866327]
[1729934125237,2.09987021,2474.1,2474.0,10.38865642]
[1729934125649,2.09987021,2474.1,2474.0,11.49861538]
[1729934126143,2.09987021,2474.1,2474.0,6.47083898]
[1729934127048,2.09987021,2474.1,2474.0,4.61314303]
[1729934127347,2.09987021,2474.1,2474.0,6.4706282]
[1729934127648,2.09987021,2474.1,2474.0,10.18559467]
[1729934128647,2.09987021,2474.1,2474.0,9.98317508]
[1729934129046,2.09987021,2474.1,2474.0,9.98317618]
[1729934129748,2.09987021,2474.1,2474.0,6.26820971]
[1729934129949,2.09987021,2474.1,2474.0,9.98312633]
[1729934130149,2.09987021,2474.1,2474.0,6.26820971]
[1729934131644,2.09987021,2474.1,2474.0,5.70285829]
[1729934132043,2.09987021,2474.1,2474.0,5.70287214]
[1729934133254,2.09987021,2474.1,2474.0,5.29187214]
[1729934133555,2.50448021,2474.1,2474.0,1.31238449]
[1729934133753,2.92858021,2474.1,2474.0,1.31238449]
[1729934134052,2.52397021,2474.1,2474.0,1.31238449]
[1729934135249,0.4241,2474.1,2474.0,1.31238449]
[1729934139149,3.6319,2474.1,2474.0,1.31238449]
[1729934139656,3.6319,2474.1,2474.0,1.43890987]
[1729934140250,5.73177021,2474.1,2474.0,1.43890987]
[1729934140856,5.73177021,2474.1,2474.0,1.31238449]
[1729934141157,5.73177021,2474.1,2474.0,1.43890812]
[1729934141351,5.73177021,2474.1,2474.0,1.87777211]
[1729934141755,5.73177021,2474.1,2474.0,3.73582192]
[1729934142654,5.73177021,2474.1,2474.0,3.29695793]
[1729934143156,5.73177021,2474.1,2474.0,3.73587855]
[1729934143359,5.73177021,2474.1,2474.0,5.85786718]
[1729934144760,5.73177021,2474.1,2474.0,5.29242293]
[1729934144961,5.73177021,2474.1,2474.0,5.85790316]
[1729934145150,5.30767021,2474.1,2474.0,7.17028765]
[1729934145355,5.30767021,2474.1,2474.0,12.71834063]
[1729934145755,5.30767021,2474.1,2474.0,13.16314063]
[1729934146053,2.09987021,2474.1,2474.0,13.16314063]
[1729934146250,2.09987021,2474.1,2474.0,10.51761067]
[1729934146456,2.09987021,2474.1,2474.0,13.17021754]
[1729934146755,2.09987021,2474.1,2474.0,11.82642466]
[1729934147656,2.09987021,2474.1,2474.0,11.69990176]
[1729934147857,2.09987021,2474.1,2474.0,11.82640899]
[1729934148655,2.09987021,2474.1,2474.0,11.82640919]
[1729934149060,2.09987021,2474.1,2474.0,11.82640878]
[1729934149262,2.09987021,2474.1,2474.0,11.82655682]
[1729934149562,2.09987021,2474.1,2474.0,11.7000498]
[1729934150156,3.2078,2474.6,2474.4,0.40455]
[1729934150460,3.6505,2474.9,2474.5,6.58405984]
[1729934150654,2.09987021,2474.6,2474.5,1.69663]
[1729934150856,2.09987021,2474.6,2474.5,9.91781602]
[1729934151059,2.09987021,2474.6,2474.5,6.86093815]
[1729934151354,2.09987021,2474.6,2474.5,8.17332264]
[1729934152565,2.09987021,2474.6,2474.5,10.29252911]
[1729934153766,2.09987021,2474.6,2474.5,10.85731636]
[1729934154265,2.09987021,2474.6,2474.5,10.41901893]
[1729934154471,2.09987021,2474.6,2474.5,6.70646016]
[1729934155159,2.09987021,2474.6,2474.5,10.41691399]
[1729934155359,2.09987021,2474.6,2474.5,10.29042417]
[1729934155569,2.09987021,2474.6,2474.5,6.57997034]
[1729934156366,2.09987021,2474.6,2474.5,10.29042456]
[1729934156560,5.71220021,2474.6,2474.5,1.85627938]
[1729934156752,7.01000021,2474.6,2474.5,1.31238449]
[1729934157158,6.60547021,2474.6,2474.5,1.31238449]
[1729934157567,3.39767021,2474.6,2474.5,1.31238449]
[1729934157864,6.60547021,2474.6,2474.5,1.31238449]
[1729934158458,3.39767021,2474.6,2474.5,1.31238449]
[1729934158759,6.60547021,2474.6,2474.5,1.31238449]
[1729934159860,7.01000021,2474.6,2474.5,1.31238449]
[1729934160167,6.60547021,2474.6,2474.5,1.31238449]
[1729934160667,7.01000021,2474.6,2474.5,1.31238449]
[1729934161062,6.60547021,2474.6,2474.5,1.31238449]
[1729934161762,3.39767021,2474.6,2474.5,1.31238449]
[1729934162563,6.60547021,2474.6,2474.5,1.31238449]
[1729934163764,6.16477021,2474.6,2474.5,2.37206304]
[1729934163962,6.16477021,2474.6,2474.5,4.22395948]
[1729934163963,2.09987021,2474.6,2474.5,4.22395948]
[1729934164270,2.09987021,2474.6,2474.5,5.10585948]
[1729934164570,2.09987021,2474.6,2474.5,3.25396304]
[1729934164871,5.71220021,2474.6,2474.5,1.31238449]
[1729934166260,6.15260021,2474.6,2474.5,1.31238449]
[1729934168465,7.0604547,2474.6,2474.2,1.05967855]
[1729934168662,3.61239,2474.3,2473.9,0.4246]
[1729934168965,3.2078,2474.3,2474.2,1.31238449]
[1729934169363,7.2494,2474.3,2474.2,1.31238449]
[1729934170467,8.96635449,2474.3,2474.2,1.31238449]
[1729934171768,8.96635449,2474.3,2474.1,1.31238449]
[1729934171966,4.92475449,2474.3,2474.1,1.31238449]
[1729934173258,1.71695449,2474.3,2474.1,1.31238449]
[1729934173462,3.2078,2474.2,2474.1,1.31238449]
[1729934173868,3.61239,2474.2,2474.1,1.31238449]
[1729934174178,3.2078,2474.2,2474.1,1.31238449]
[1729934174469,3.61239,2474.2,2474.1,1.31238449]
[1729934174863,3.2078,2474.2,2474.1,1.31238449]
[1729934175061,3.61239,2474.2,2474.1,1.31238449]
[1729934175465,8.56178449,2474.2,2473.7,0.8383]
[1729934175669,4.52018449,2473.9,2473.7,1.31238449]
[1729934175863,0.40466,2473.8,2473.7,1.31238449]
[1729934176975,4.44545,2473.9,2473.7,1.31238449]
[1729934177161,4.44545,2473.9,2473.8,1.31238449]
[1729934177669,8.48785,2473.9,2473.8,1.31238449]
[1729934177971,4.44545,2473.9,2473.8,1.31238449]
[1729934178968,4.0408,2473.9,2473.8,1.31238449]
[1729934179472,3.2078,2473.9,2473.8,1.31238449]
[1729934179779,3.2078,2473.9,2473.8,1.71704449]
[1729934179978,3.2078,2473.9,2473.8,2.13954449]
[1729934181067,3.2078,2473.9,2473.8,1.73488449]
[1729934181271,0.4406,2474.5,2473.8,7.61949598]
[1729934181272,3.2078,2474.2,2473.8,7.61949598]
[1729934181476,3.2078,2474.2,2474.1,1.71699449]
[1729934182169,3.2078,2474.2,2474.1,1.31238449]
[1729934182679,3.2078,2474.2,2474.1,7.91907898]
[1729934182870,3.2078,2474.2,2474.1,9.76078277]
[1729934183872,4.0408,2474.5,2474.2,0.40458]
[1729934184074,4.0408,2474.5,2474.4,1.31238449]
[1729934184276,3.2078,2474.5,2474.4,1.31238449]
[1729934187779,4.92472449,2474.5,2474.4,1.31238449]
[1729934188075,4.52018449,2474.5,2474.3,1.76418449]
[1729934189078,4.52018449,2474.5,2474.4,1.31238449]
[1729934190079,3.2078,2474.5,2474.4,1.31238449]
[1729934194583,1.31238449,2474.6,2474.4,1.31238449]
[1729934194886,4.52018449,2474.6,2474.5,0.4227]
[1729934195088,4.52018449,2474.6,2474.5,0.8431]
[1729934195290,4.92471449,2474.6,2474.5,0.8431]
[1729934197881,4.92471449,2474.6,2474.5,0.4204]
[1729934198078,8.56098449,2474.6,2474.3,1.76418449]
[1729934198281,2.16854449,2474.5,2474.3,1.76418449]
[1729934198681,2.16854449,2474.5,2474.4,0.4428]
[1729934202481,2.59834449,2474.5,2474.4,0.4428]
[1729934203988,5.80614449,2474.5,2474.4,0.4428]
[1729934204887,5.40158449,2474.5,2474.3,0.4518]
[1729934205085,1.71694449,2474.4,2474.3,0.4518]
[1729934205589,1.71694449,2474.4,2474.2,0.4269]
[1729934205887,2.13694449,2474.4,2474.2,0.4269]
[1729934207987,0.40457,2474.3,2474.2,0.4269]
[1729934208186,2.13695449,2474.4,2474.2,0.4269]
[1729934208988,2.13695449,2474.4,2474.2,1.73928449]
[1729934208989,1.73238449,2474.4,2474.2,1.73928449]
[1729934209190,0.42,2474.4,2474.2,1.73928449]
[1729934211490,0.42,2474.4,2474.0,2.94361647]
[1729934211491,0.42,2474.4,2474.0,2.53900647]
[1729934211686,1.71699449,2474.1,2473.9,0.4277]
[1729934211892,0.4173,2474.0,2473.9,0.4277]
[1729934212191,0.4173,2474.0,2473.9,2.27163436]
[1729934212791,0.4173,2474.0,2473.9,0.4277]
[1729934212996,0.4173,2474.0,2473.9,2.27162618]
[1729934213197,0.4173,2474.0,2473.9,0.4277]
[1729934213691,0.82192,2474.0,2473.9,0.4277]
[1729934214094,2.13430449,2474.0,2473.9,0.4277]
[1729934214497,2.57970449,2474.0,2473.8,1.31238449]
[1729934214696,3.2078,2473.9,2473.8,1.31238449]
[1729934214898,3.2078,2473.9,2473.8,3.15609425]
[1729934220599,3.2078,2473.9,2473.8,3.15562435]
[1729934223304,3.2078,2473.9,2473.8,3.15603808]
[1729934223495,0.4173,2474.0,2473.8,3.28256757]
[1729934223695,0.4173,2474.0,2473.9,3.15603808]
[1729934224502,0.4173,2474.0,2473.9,3.15644432]
[1729934228605,0.4173,2474.0,2473.9,4.7440732]
[1729934230406,0.4173,2474.0,2473.9,3.43168871]
[1729934230606,0.8645,2474.0,2473.9,1.84405983]
[1729934234109,0.8645,2474.0,2473.9,1.8440392]
[1729934238508,0.8645,2474.0,2473.9,3.43166808]
[1729934238909,0.8645,2474.0,2473.9,1.84422364]
[1729934239115,0.8645,2474.0,2473.9,3.43185252]
[1729934242213,3.2078,2474.1,2473.9,4.74423701]
[1729934242422,3.2078,2474.1,2474.0,3.98142813]
[1729934242724,3.2078,2474.1,2474.0,4.39462813]
[1729934242911,3.2078,2474.1,2474.0,3.99000813]
[1729934243109,2.60052047,2474.1,2474.0,6.5138346]
[1729934243521,2.60052047,2474.1,2474.0,4.39462813]
[1729934243719,1.31238449,2474.3,2474.0,6.5138346]
[1729934244022,1.31238449,2474.3,2474.1,3.43231904]
[1729934244318,4.44436,2474.4,2474.1,1.5880954]
[1729934244533,1.31238449,2474.2,2474.1,1.5880954]
[1729934244817,1.31238449,2474.2,2474.1,1.84227218]
[1729934245009,0.40461,2474.1,2474.0,0.4132]
[1729934245210,6.21119449,2474.1,2473.9,1.5880954]
[1729934245422,0.40464,2473.9,2473.8,1.5880954]
[1729934245618,2.54902449,2473.9,2473.8,3.43087414]
[1729934245924,0.40466,2473.8,2473.7,1.5880954]
[1729934246111,4.94088449,2473.8,2473.4,2.0073954]
[1729934246312,4.52018449,2473.5,2473.3,0.4112]
[1729934246520,1.73308449,2473.4,2473.3,1.72358449]
[1729934246816,1.73308449,2473.4,2473.3,0.4112]
[1729934249916,1.73308449,2473.4,2473.3,1.72358449]
[1729934253429,0.4207,2473.4,2473.3,1.72358449]
[1729934253626,1.73308449,2473.4,2473.3,1.72358449]
[1729934255034,0.4207,2473.4,2473.3,1.72358449]
[1729934257334,4.52018449,2473.5,2473.3,1.72358449]
[1729934257527,3.2078,2473.5,2473.4,1.31238449]
[1729934259132,1.71958449,2473.6,2473.4,1.31238449]
[1729934259334,4.92738449,2473.6,2473.4,1.31238449]
[1729934259538,4.92738449,2473.6,2473.5,0.4437]
[1729934261134,5.33207449,2473.6,2473.5,0.4437]
[1729934261540,4.92738449,2473.6,2473.5,0.4437]
[1729934262638,1.71958449,2473.6,2473.5,0.4437]
[1729934262833,4.92738449,2473.6,2473.5,0.4437]
[1729934264242,1.71958449,2473.6,2473.5,0.4437]
[1729934264445,4.92738449,2473.6,2473.5,0.4437]
[1729934265740,3.2078,2473.6,2473.5,0.8484]
[1729934265933,3.2078,2473.6,2473.5,6.20318449]
[1729934266138,3.2078,2473.6,2473.5,2.16078449]
[1729934266940,3.2078,2473.6,2473.5,0.8484]
[1729934269137,1.31238449,2473.7,2473.5,0.8484]
[1729934269346,3.2078,2473.6,2473.5,0.8484]
[1729934270940,1.31238449,2473.7,2473.5,0.8484]
[1729934271144,1.31238449,2473.7,2473.6,0.4469]
[1729934273039,1.72108449,2473.7,2473.6,0.4469]
[1729934273643,1.72108449,2473.7,2473.5,0.4437]
[1729934273644,2.12575449,2473.7,2473.5,0.4437]
[1729934273844,1.31238449,2473.6,2473.5,0.4437]
[1729934276748,3.2078,2473.7,2473.5,2.16078449]
[1729934276947,3.2078,2473.7,2473.6,1.31238449]
[1729934278942,3.2078,2473.7,2473.6,1.71707449]
[1729934279549,3.2078,2473.7,2473.6,0.40469]
[1729934280543,1.74468449,2473.9,2473.6,1.31238449]
[1729934280742,3.2078,2473.8,2473.7,0.40467]
[1729934280946,3.2078,2473.8,2473.7,2.72365092]
[1729934281250,3.2078,2473.8,2473.7,0.4391]
[1729934281449,4.4834,2473.8,2473.7,0.4391]
[1729934281839,4.88806,2473.8,2473.5,0.4437]
[1729934282039,1.31238449,2473.7,2473.5,0.4437]
[1729934282248,1.31238449,2473.7,2473.4,3.78367989]
[1729934282249,1.31238449,2473.6,2473.4,1.5880954]
[1729934282449,4.52018449,2473.5,2473.3,0.4332]
[1729934282644,4.93428449,2473.5,2473.3,0.4332]
[1729934284255,4.93428449,2473.5,2473.3,1.74558449]
[1729934287851,3.6219,2473.5,2473.4,1.31238449]
[1729934288457,3.6219,2473.5,2473.4,3.15480403]
[1729934288658,3.6219,2473.5,2473.4,4.21387967]
[1729934289058,3.2078,2473.5,2473.4,3.15480403]
[1729934289357,3.2078,2473.5,2473.4,5.14761943]
[1729934290454,0.8615,2473.8,2473.6,0.40468]
[1729934290455,5.35218449,2473.8,2473.6,0.40468]
[1729934290654,5.35218449,2473.8,2473.7,3.4313188]
[1729934291057,4.0398,2473.8,2473.7,2.90166754]
[1729934291259,5.35218449,2473.8,2473.7,3.4313188]
[1729934291653,4.52018449,2473.8,2473.7,3.4313188]
[1729934292758,4.52018449,2473.8,2473.7,3.8359888]
[1729934292953,3.2078,2473.8,2473.7,5.27491114]
[1729934293258,3.2078,2473.8,2473.7,9.92809697]
[1729934293456,3.2078,2473.8,2473.7,9.92808985]
[1729934293759,3.2078,2473.8,2473.7,13.97048985]
[1729934294556,3.2078,2473.8,2473.7,13.97009623]
[1729934295157,3.2078,2473.8,2473.7,10.28507735]
[1729934295362,3.2078,2473.8,2473.7,13.96980562]
[1729934296253,3.2078,2473.8,2473.7,10.28507735]
[1729934296452,3.2078,2473.8,2473.7,13.96938807]
[1729934297071,3.2078,2473.8,2473.7,13.84285734]
[1729934297355,3.2078,2473.8,2473.7,13.9686903]
[1729934297555,3.2078,2473.8,2473.7,12.05260133]
[1729934298664,3.2078,2473.8,2473.7,13.96714931]
[1729934298963,3.2078,2473.8,2473.7,12.05260174]
[1729934299262,3.2078,2473.8,2473.7,12.05032633]
[1729934300165,3.2078,2473.9,2473.7,11.64565633]
[1729934300366,1.31238449,2474.1,2473.8,6.23918886]
[1729934300664,4.52018449,2474.2,2474.0,2.37058684]
[1729934301164,4.95488449,2474.2,2474.0,2.37058684]
[1729934305862,4.95488449,2474.2,2474.0,2.77520684]
[1729934306559,4.95488449,2474.2,2474.1,1.31238449]
[1729934307166,3.2078,2474.2,2474.1,1.71699449]
[1729934307360,2.60052857,2474.2,2474.1,7.59837916]
[1729934307565,2.60052857,2474.2,2474.1,7.72488607]
[1729934308270,2.60052857,2474.2,2474.1,9.31050375]
[1729934308460,2.60052857,2474.2,2474.1,9.18399391]
[1729934308866,2.60052857,2474.2,2474.1,9.18095356]
[1729934309974,2.60052857,2474.2,2474.1,7.72184581]
[1729934310470,2.60052857,2474.2,2474.1,9.0342303]
[1729934310669,2.60052857,2474.2,2474.1,15.25916232]
[1729934311173,1.58849271,2474.2,2474.1,9.83830924]
[1729934311669,1.58849271,2474.2,2474.1,11.15069373]
[1729934311965,1.58849271,2474.2,2474.1,8.9077233]
[1729934312572,1.58849271,2474.2,2474.1,10.49192585]
[1729934313069,1.58849271,2474.2,2474.1,8.9077233]
[1729934313270,1.58849271,2474.2,2474.1,10.49164777]
[1729934313571,1.58849271,2474.2,2474.1,10.48535707]
[1729934313974,3.2078,2474.9,2474.5,0.40453]
[1729934314165,3.2078,2474.9,2474.8,1.31238449]
[1729934314661,4.92466449,2474.9,2474.8,1.31238449]
[1729934315268,8.96546449,2474.9,2474.6,1.31238449]
[1729934315464,1.31238449,2474.7,2474.6,1.31238449]
[1729934315870,6.60809449,2474.7,2474.5,1.31238449]
[1729934316070,1.31238449,2474.6,2474.5,1.31238449]
[1729934317563,4.92471449,2474.6,2474.5,1.31238449]
[1729934317772,4.52018449,2474.6,2474.5,1.31238449]
[1729934318172,3.2078,2474.6,2474.5,1.31238449]
[1729934318570,3.61233,2474.6,2474.5,1.31238449]
[1729934319374,3.2078,2474.6,2474.5,1.31238449]
[1729934320074,3.61233,2474.6,2474.5,1.31238449]
[1729934321175,3.2078,2474.6,2474.5,1.31238449]
[1729934322461,3.61233,2474.6,2474.5,1.31238449]
[1729934323168,3.2078,2474.6,2474.5,1.31238449]
[1729934323775,0.4435,2474.8,2474.5,1.71691449]
[1729934323974,0.4435,2474.8,2474.7,1.31238449]
[1729934324374,0.4435,2474.8,2474.7,1.72748449]
[1729934325980,0.4435,2474.8,2474.7,2.13199449]
[1729934327172,0.4435,2474.8,2474.7,1.72748449]
[1729934328684,7.19154243,2475.6,2474.7,1.72748449]
[1729934328685,3.61219,2475.5,2475.1,0.40444]
[1729934328877,3.61219,2475.5,2475.4,1.31238449]
[1729934328878,4.05699,2475.5,2475.4,1.31238449]
[1729934329172,3.6526,2475.5,2475.4,1.31238449]
[1729934333776,3.2078,2475.5,2475.4,3.02915898]